[Event "7. Arber-Senioren-Cup 2019"]
[Site "Bodenmais"]
[Date "2019.08.01"]
[Round "6.21"]
[White "Supplieth, Peter"]
[Black "Kirschner, Torsten"]
[Result "1/2-1/2"]
[ECO "B22"]
[WhiteElo "1880"]
[BlackElo "1767"]
[Annotator "NA"]
[PlyCount "110"]
[EventDate "2019.07.27"]
[EventType "swiss"]
[EventCountry "GER"]
[SourceTitle "playchess.com"]
[Source "ChessBase"]
[SourceQuality "1"]
[TimeControl "60/7800+30:0"]

1. e4 {[%emt 0:00:00]} c5 {[%emt 0:00:00]} 2. c3 {[%emt 0:00:10]} d5 {[%emt 0:00:17]} 3. exd5 {[%emt 0:00:00]} Nf6 {[%emt 0:01:41]} 4. c4 {[%emt 0:00:58]} Bf5 {[%emt 0:05:21]} 5. Nf3 {[%emt 0:03:49]} h6 {[%emt 0:03:51]} 6. Nc3 {[%emt 0:00:39]} Nbd7 {[%emt 0:02:14]} 7. d4 {[%emt 0:00:10]} Qc7 {[%emt 0:01:52]} 8. Be3 {[%emt 0:02:53]} Ng4 {[%emt 0:05:19]} 9. Nb5 {[%emt 0:02:15]} Qb8 {[%emt 0:00:59]} 10. Qd2 {[%emt 0:03:54]} a6 {[%emt 0:01:41]} 11. Bf4 {[%emt 0:00:28]} Qc8 {[%emt 0:03:34]} 12. Nc7+ {[%emt 0:00:27]} Kd8 {[%emt 0:00:11]} 13. Nxa8 {[%emt 0:01:28]} Qxa8 {[%emt 0:02:09]} 14. h3 {[%emt 0:01:01]} Ngf6 {[%emt 0:01:07]} 15. dxc5 {[%emt 0:00:19]} a5 {[%emt 0:01:40]} 16. Ne5 {[%emt 0:09:46]} Ne4 {[%emt 0:07:01]} 17. Qe3 {[%emt 0:03:39]} a4 {[%emt 0:15:46]} 18. Qa3 {[%emt 0:05:44]} Nxe5 {[%emt 0:06:00]} 19. Bxe5 {[%emt 0:00:08]} f6 {[%emt 0:00:23]} 20. Bh2 {[%emt 0:04:46]} e5 {[%emt 0:02:09]} 21. b4 {[%emt 0:00:19]} Nxc5 {[%emt 0:11:40]} 22. Be2 {[%emt 0:07:42]} Na6 {[%emt 0:02:09]} 23. O-O {[%emt 0:04:30]} Nxb4 {[%emt 0:02:29]} 24. Qf3 {[%emt 0:04:50]} Bh7 {[%emt 0:04:19]} 25. Rfd1 {[%emt 0:01:08]} Nc2 {[%emt 0:02:31]} 26. Rac1 {[%emt 0:04:31]} Bc5 {[%emt 0:01:21]} 27. Bd3 {[%emt 0:03:03]} Nd4 {[%emt 0:01:20]} 28. Qg4 {[%emt 0:00:57]} Bxd3 {[%emt 0:09:25]} 29. Rxd3 {[%emt 0:00:33]} Rg8 {[%emt 0:00:49]} 30. Kf1 {[%emt 0:04:08]} Qa6 {[%emt 0:01:33]} 31. Qd1 {[%emt 0:00:56]} Nf5 {[%emt 0:04:00]} 32. Qe1 {[%emt 0:07:52]} Re8 {[%emt 0:05:29]} 33. Qe4 {[%emt 0:02:39]} Nd6 {[%emt 0:01:40]} 34. Qg4 {[%emt 0:01:57]} Re7 {[%emt 0:01:48]} 35. Rdc3 {[%emt 0:06:05]} f5 {[%emt 0:06:43]} 36. Qe2 {[%emt 0:00:24]} Ne4 {[%emt 0:01:22]} 37. Rf3 {[%emt 0:03:10]} g6 {[%emt 0:02:09]} 38. Bg3 {[%emt 0:01:10]} Bd4 {[%emt 0:01:49]} 39. Qd3 {[%emt 0:06:56]} Rf7 {[%emt 0:02:54]} 40. h4 {[%emt 0:02:43]} Qa5 {[%emt 0:02:11]} 41. Rc2 {[%emt 0:14:46]} Qb6 {[%emt 0:06:46]} 42. Qd1 {[%emt 0:03:26]} g5 {[%emt 0:02:47]} 43. Re2 {[%emt 0:03:43]} g4 {[%emt 0:02:34]} 44. Rd3 {[%emt 0:04:01]} Nxg3+ {[%emt 0:04:16]} 45. Rxg3 {[%emt 0:01:24]} h5 {[%emt 0:00:10]} 46. Rd3 {[%emt 0:04:24]} Rc7 {[%emt 0:00:18]} 47. Rc2 {[%emt 0:00:32]} f4 {[%emt 0:00:22]} 48. Rc1 {[%emt 0:02:39]} Qf6 {[%emt 0:00:18]} 49. Ke2 {[%emt 0:05:50]} Bc5 {[%emt 0:01:52]} 50. Kd2 {[%emt 0:01:42]} Qxh4 {[%emt 0:00:08]} 51. Qe2 {[%emt 0:00:36]} Bb4+ {[%emt 0:00:12]} 52. Rdc3 {[%emt 0:00:34]} Qg5 {[%emt 0:00:30]} 53. Kc2 {[%emt 0:00:09]} Bxc3 {[%emt 0:00:15]} 54. Kxc3 {[%emt 0:00:05]} b5 {[%emt 0:00:19]} 55. Kb2 {[%emt 0:00:25]} Qe7 {[%emt 0:00:09]} 1/2-1/2

[Event "7. Arber-Senioren-Cup 2019"]
[Site "Bodenmais"]
[Date "2019.08.01"]
[Round "6.22"]
[White "Sagner, Guenter"]
[Black "Klimpel, Siegfried"]
[Result "1/2-1/2"]
[ECO "A51"]
[WhiteElo "1696"]
[BlackElo "1843"]
[Annotator "NA"]
[PlyCount "60"]
[EventDate "2019.07.27"]
[EventType "swiss"]
[EventCountry "GER"]
[SourceTitle "playchess.com"]
[Source "ChessBase"]
[SourceQuality "1"]
[TimeControl "60/7800+30:0"]

1. d4 {[%emt 0:00:00]} Nf6 {[%emt 0:00:00]} 2. c4 {[%emt 0:00:00]} e5 {[%emt 0:00:00]} 3. dxe5 {[%emt 0:00:31]} Ne4 {[%emt 0:00:37]} 4. Qc2 {[%emt 0:02:23]} Nc5 {[%emt 0:03:25]} 5. b4 {[%emt 0:04:09]} Ne6 {[%emt 0:00:26]} 6. a3 {[%emt 0:01:00]} a5 {[%emt 0:05:58]} 7. b5 {[%emt 0:03:16]} d5 {[%emt 0:04:17]} 8. exd6 {[%emt 0:00:50]} Qxd6 {[%emt 0:00:41]} 9. Bb2 {[%emt 0:01:32]} c6 {[%emt 0:04:00]} 10. Nc3 {[%emt 0:01:49]} cxb5 {[%emt 0:09:14]} 11. Rd1 {[%emt 0:01:30]} Qc6 {[%emt 0:04:45]} 12. cxb5 {[%emt 0:00:33]} Qc4 {[%emt 0:04:09]} 13. e3 {[%emt 0:01:03]} Qg4 {[%emt 0:00:17]} 14. Be2 {[%emt 0:01:22]} Qxg2 {[%emt 0:08:22]} 15. Bf3 {[%emt 0:00:24]} Qg6 {[%emt 0:00:02]} 16. Be4 {[%emt 0:03:15]} Qh6 {[%emt 0:02:47]} 17. Nd5 {[%emt 0:06:57]} Nd7 {[%emt 0:01:10]} 18. Bf5 {[%emt 0:08:00]} Ndc5 {[%emt 0:09:55]} 19. Nb6 {[%emt 0:05:31]} Nd4 {[%emt 0:22:30]} 20. exd4 {[%emt 0:06:36]} Qxb6 21. dxc5 Qxb5 {[%emt 0:15:10]} 22. Qe4+ {[%emt 0:01:34]} Be7 {[%emt 0:00:22]} 23. Bxg7 {[%emt 0:05:52]} Rg8 {[%emt 0:04:38]} 24. Bf6 {[%emt 0:00:35]} Qxc5 {[%emt 0:00:11]} 25. Bxc8 {[%emt 0:07:12]} Rxc8 {[%emt 0:00:04]} 26. Ne2 {[%emt 0:04:29]} Rc6 {[%emt 0:05:40]} 27. Rc1 {[%emt 0:06:05]} Qd6 {[%emt 0:05:36]} 28. Rxc6 bxc6 29. Qxe7+ Qxe7 30. Bxe7 Kxe7 1/2-1/2

[Event "7. Arber-Senioren-Cup 2019"]
[Site "Bodenmais"]
[Date "2019.08.01"]
[Round "6.23"]
[White "Peglau, Markus"]
[Black "Trinkl, Andreas"]
[Result "1-0"]
[ECO "A04"]
[WhiteElo "1849"]
[BlackElo "1620"]
[Annotator "NA"]
[PlyCount "47"]
[EventDate "2019.07.27"]
[EventType "swiss"]
[EventCountry "GER"]
[SourceTitle "playchess.com"]
[Source "ChessBase"]
[SourceQuality "1"]
[TimeControl "60/7800+30:0"]

1. Nf3 g6 {[%emt 0:00:00]} 2. c4 {[%emt 0:00:16]} Bg7 {[%emt 0:00:05]} 3. Nc3 {[%emt 0:00:05]} b6 {[%emt 0:01:26]} 4. d4 {[%emt 0:00:27]} Bb7 {[%emt 0:00:28]} 5. e4 {[%emt 0:01:33]} d6 {[%emt 0:00:34]} 6. Bd3 {[%emt 0:01:45]} c5 {[%emt 0:09:11]} 7. d5 {[%emt 0:07:10]} Nd7 {[%emt 0:01:45]} 8. O-O {[%emt 0:03:25]} Ne5 {[%emt 0:03:18]} 9. Nxe5 {[%emt 0:01:34]} dxe5 {[%emt 0:04:10]} 10. f4 {[%emt 0:04:48]} Bc8 {[%emt 0:19:05]} 11. Qf3 {[%emt 0:03:31]} Nh6 {[%emt 0:10:38]} 12. fxe5 {[%emt 0:03:09]} O-O {[%emt 0:00:47]} 13. Bf4 {[%emt 0:11:08]} Ng4 {[%emt 0:09:26]} 14. Qg3 {[%emt 0:03:43]} f6 {[%emt 0:07:08]} 15. exf6 {[%emt 0:02:43]} Nxf6 {[%emt 0:01:55]} 16. Qh4 {[%emt 0:10:59]} Be6 {[%emt 0:11:46]} 17. Bg5 {[%emt 0:23:14]} Re8 {[%emt 0:08:56]} 18. Rf3 {[%emt 0:03:05]} Bc8 {[%emt 0:09:23]} 19. e5 {[%emt 0:06:48]} Ng4 {[%emt 0:18:09]} 20. e6 {[%emt 0:07:36]} Bxe6 {[%emt 0:04:37]} 21. dxe6 {[%emt 0:05:07]} Bd4+ {[%emt 0:02:30]} 22. Kf1 {[%emt 0:15:46]} h5 {[%emt 0:08:43]} 23. Bxg6 {[%emt 0:03:47]} Rf8 {[%emt 0:03:52]} 24. Bf7+ 1-0

[Event "7. Arber-Senioren-Cup 2019"]
[Site "Bodenmais"]
[Date "2019.08.01"]
[Round "6.24"]
[White "Braeu, Ludwig"]
[Black "Gottwald, Helmut"]
[Result "1-0"]
[ECO "A15"]
[WhiteElo "1818"]
[BlackElo "1579"]
[Annotator "NA"]
[PlyCount "105"]
[EventDate "2019.07.27"]
[EventType "swiss"]
[EventCountry "GER"]
[SourceTitle "playchess.com"]
[Source "ChessBase"]
[SourceQuality "1"]
[TimeControl "60/7800+30:0"]

1. c4 {[%emt 0:00:00]} Nf6 {[%emt 0:00:00]} 2. g3 {[%emt 0:00:00]} e6 {[%emt 0:00:36]} 3. Bg2 {[%emt 0:00:09]} Nc6 {[%emt 0:01:04]} 4. Nf3 {[%emt 0:01:24]} d5 {[%emt 0:02:00]} 5. b3 {[%emt 0:01:58]} Bc5 {[%emt 0:04:10]} 6. O-O {[%emt 0:03:51]} Bd7 {[%emt 0:04:48]} 7. Bb2 {[%emt 0:06:06]} O-O {[%emt 0:02:08]} 8. a3 {[%emt 0:04:27]} a6 {[%emt 0:09:33]} 9. Qc2 {[%emt 0:04:53]} h6 {[%emt 0:10:27]} 10. cxd5 {[%emt 0:02:14]} Bxf2+ {[%emt 0:02:04]} 11. Rxf2 {[%emt 0:02:07]} exd5 {[%emt 0:00:30]} 12. Bxf6 {[%emt 0:03:05]} Qxf6 {[%emt 0:00:39]} 13. Nc3 {[%emt 0:00:19]} Rfe8 {[%emt 0:12:16]} 14. Rc1 {[%emt 0:03:17]} Ne7 {[%emt 0:06:55]} 15. Nd1 {[%emt 0:06:09]} Bf5 {[%emt 0:06:22]} 16. Qb2 {[%emt 0:00:53]} Qb6 {[%emt 0:01:16]} 17. b4 {[%emt 0:06:18]} Rad8 {[%emt 0:03:30]} 18. Qd4 {[%emt 0:04:10]} Qd6 {[%emt 0:02:44]} 19. Ne3 {[%emt 0:04:22]} Bd7 {[%emt 0:08:06]} 20. Qe5 {[%emt 0:07:11]} Bc6 {[%emt 0:03:42]} 21. Qxd6 {[%emt 0:00:36]} Rxd6 {[%emt 0:00:24]} 22. Nd4 {[%emt 0:01:07]} Ng6 {[%emt 0:07:55]} 23. Nef5 {[%emt 0:05:30]} Rf6 {[%emt 0:02:29]} 24. Nxc6 {[%emt 0:00:30]} bxc6 {[%emt 0:00:37]} 25. Nd4 {[%emt 0:01:03]} Rxf2 {[%emt 0:01:20]} 26. Kxf2 {[%emt 0:00:11]} Ne5 {[%emt 0:00:56]} 27. Bf3 {[%emt 0:07:21]} Nc4 {[%emt 0:01:47]} 28. Nxc6 {[%emt 0:01:52]} Nxd2 {[%emt 0:04:33]} 29. Bxd5 {[%emt 0:00:50]} Ne4+ {[%emt 0:00:46]} 30. Bxe4 {[%emt 0:01:07]} Rxe4 {[%emt 0:00:11]} 31. e3 {[%emt 0:00:25]} Re8 {[%emt 0:03:10]} 32. Nd4 {[%emt 0:00:21]} Rc8 {[%emt 0:02:50]} 33. Rc6 {[%emt 0:02:04]} Kf8 {[%emt 0:00:58]} 34. a4 {[%emt 0:01:31]} Rb8 {[%emt 0:02:28]} 35. b5 {[%emt 0:00:38]} axb5 {[%emt 0:00:31]} 36. axb5 {[%emt 0:03:49]} Rb7 {[%emt 0:00:26]} 37. Kf3 {[%emt 0:01:05]} Ke7 {[%emt 0:00:20]} 38. Ke4 {[%emt 0:02:47]} Kd7 {[%emt 0:01:06]} 39. Kd5 {[%emt 0:00:11]} Ra7 {[%emt 0:01:42]} 40. Ra6 {[%emt 0:02:42]} Rb7 {[%emt 0:00:48]} 41. e4 {[%emt 0:02:52]} Rb8 {[%emt 0:02:49]} 42. Ra7 {[%emt 0:01:24]} Rb6 {[%emt 0:04:47]} 43. Ra6 {[%emt 0:01:41]} Rb8 {[%emt 0:01:45]} 44. e5 {[%emt 0:00:53]} Re8 {[%emt 0:02:53]} 45. Ra7 {[%emt 0:00:45]} Rb8 {[%emt 0:00:29]} 46. Kc5 {[%emt 0:01:49]} Rb6 {[%emt 0:00:53]} 47. Nc6 {[%emt 0:02:24]} Kc8 {[%emt 0:03:46]} 48. Ra8+ {[%emt 0:02:17]} Kd7 {[%emt 0:00:41]} 49. Rd8+ {[%emt 0:00:20]} Ke6 {[%emt 0:00:25]} 50. Re8+ {[%emt 0:00:10]} Kf5 {[%emt 0:01:39]} 51. Re7 {[%emt 0:00:46]} Rb7 {[%emt 0:02:22]} 52. Rxf7+ {[%emt 0:00:59]} Kg6 {[%emt 0:00:35]} 53. Rf8 {[%emt 0:01:10]} 1-0

[Event "7. Arber-Senioren-Cup 2019"]
[Site "Bodenmais"]
[Date "2019.08.01"]
[Round "6.25"]
[White "Gerl, Hans"]
[Black "Auterhoff, Juergen"]
[Result "1-0"]
[ECO "E12"]
[WhiteElo "1955"]
[BlackElo "1673"]
[Annotator "NA"]
[PlyCount "107"]
[EventDate "2019.07.27"]
[EventType "swiss"]
[EventCountry "GER"]
[SourceTitle "playchess.com"]
[Source "ChessBase"]
[SourceQuality "1"]
[TimeControl "60/7800+30:0"]

1. d4 {[%emt 0:00:00]} Nf6 {[%emt 0:00:00]} 2. c4 {[%emt 0:00:00]} e6 {[%emt 0:00:00]} 3. Nf3 {[%emt 0:00:00]} b6 {[%emt 0:00:36]} 4. a3 {[%emt 0:00:10]} Bb7 {[%emt 0:00:19]} 5. Nc3 {[%emt 0:00:12]} d5 {[%emt 0:01:54]} 6. cxd5 {[%emt 0:00:11]} exd5 {[%emt 0:00:36]} 7. g3 {[%emt 0:01:20]} Nbd7 {[%emt 0:01:53]} 8. Bg2 {[%emt 0:00:08]} Be7 {[%emt 0:01:20]} 9. b4 {[%emt 0:03:42]} a6 {[%emt 0:02:42]} 10. Rb1 {[%emt 0:00:52]} O-O {[%emt 0:01:05]} 11. O-O {[%emt 0:00:41]} Bd6 {[%emt 0:06:34]} 12. Qb3 {[%emt 0:04:16]} Re8 {[%emt 0:05:02]} 13. Nh4 {[%emt 0:02:11]} c6 {[%emt 0:08:43]} 14. Nf5 {[%emt 0:02:35]} Bc7 {[%emt 0:02:52]} 15. f3 {[%emt 0:03:17]} Nf8 {[%emt 0:08:29]} 16. e4 {[%emt 0:03:58]} Bc8 {[%emt 0:03:25]} 17. Rd1 {[%emt 0:02:34]} Bxf5 {[%emt 0:03:23]} 18. exf5 {[%emt 0:00:12]} Qd7 {[%emt 0:04:09]} 19. Qc2 {[%emt 0:00:49]} h6 {[%emt 0:03:04]} 20. Ne2 {[%emt 0:04:57]} Re7 {[%emt 0:04:16]} 21. Bf1 {[%emt 0:02:43]} Rae8 {[%emt 0:04:56]} 22. Nf4 {[%emt 0:03:40]} b5 {[%emt 0:02:53]} 23. Bd2 {[%emt 0:01:43]} Bb6 {[%emt 0:01:49]} 24. Bc3 {[%emt 0:00:42]} Re3 {[%emt 0:05:23]} 25. Kg2 {[%emt 0:03:30]} R3e7 {[%emt 0:01:45]} 26. Rbc1 {[%emt 0:01:01]} Bc7 {[%emt 0:03:45]} 27. Bd2 {[%emt 0:00:54]} Bb6 {[%emt 0:10:13]} 28. Qxc6 Bxd4 29. Qxa6 {[%emt 0:03:13]} Qxf5 {[%emt 0:08:16]} 30. Bd3 {[%emt 0:03:54]} Qe5 {[%emt 0:05:51]} 31. Re1 {[%emt 0:01:13]} Qb8 {[%emt 0:01:27]} 32. Rxe7 {[%emt 0:04:39]} Rxe7 {[%emt 0:00:14]} 33. Qxb5 {[%emt 0:00:24]} Qxb5 {[%emt 0:03:00]} 34. Bxb5 {[%emt 0:00:13]} Bb2 {[%emt 0:00:11]} 35. Rb1 {[%emt 0:01:13]} Bxa3 {[%emt 0:00:40]} 36. Rb3 {[%emt 0:01:04]} Ra7 {[%emt 0:02:06]} 37. Bc6 {[%emt 0:04:06]} d4 {[%emt 0:01:59]} 38. b5 {[%emt 0:01:25]} Bc5 {[%emt 0:03:23]} 39. Nd3 {[%emt 0:04:35]} Bb6 {[%emt 0:01:13]} 40. Bf4 {[%emt 0:05:27]} Ne6 {[%emt 0:01:20]} 41. Bd6 {[%emt 0:00:16]} Ra2+ {[%emt 0:06:29]} 42. Rb2 {[%emt 0:02:18]} Rxb2+ {[%emt 0:00:14]} 43. Nxb2 {[%emt 0:00:13]} Nd8 {[%emt 0:03:02]} 44. Nc4 {[%emt 0:01:58]} Ba7 {[%emt 0:07:32]} 45. Ba8 {[%emt 0:02:46]} Nd7 {[%emt 0:00:42]} 46. Bc7 {[%emt 0:00:53]} Ne6 {[%emt 0:01:00]} 47. b6 {[%emt 0:00:32]} d3 {[%emt 0:02:19]} 48. Kf1 {[%emt 0:00:44]} Ndc5 {[%emt 0:02:08]} 49. bxa7 {[%emt 0:02:32]} Nxc7 {[%emt 0:00:12]} 50. Bc6 {[%emt 0:00:13]} Nb3 51. a8=Q+ {[%emt 0:02:04]} Nxa8 {[%emt 0:03:45]} 52. Bxa8 {[%emt 0:00:02]} d2 {[%emt 0:00:32]} 53. Ke2 {[%emt 0:00:17]} Nd4+ {[%emt 0:00:55]} 54. Kxd2 {[%emt 0:00:16]} 1-0

[Event "7. Arber-Senioren-Cup 2019"]
[Site "Bodenmais"]
[Date "2019.08.01"]
[Round "6.26"]
[White "Moser, Andreas"]
[Black "Wittkugel, Friedhelm"]
[Result "1/2-1/2"]
[ECO "B08"]
[WhiteElo "1693"]
[BlackElo "1920"]
[Annotator "NA"]
[PlyCount "56"]
[EventDate "2019.07.27"]
[EventType "swiss"]
[EventCountry "GER"]
[SourceTitle "playchess.com"]
[Source "ChessBase"]
[SourceQuality "1"]
[TimeControl "60/7800+30:0"]

1. e4 {[%emt 0:00:00]} Nf6 {[%emt 0:00:00]} 2. Nc3 {[%emt 0:00:31]} d6 {[%emt 0:00:13]} 3. Nf3 {[%emt 0:00:39]} g6 {[%emt 0:00:42]} 4. d4 {[%emt 0:00:23]} Bg7 {[%emt 0:00:32]} 5. h3 {[%emt 0:00:24]} c6 {[%emt 0:00:34]} 6. Bd3 {[%emt 0:02:29]} Qc7 {[%emt 0:04:12]} 7. Be3 {[%emt 0:01:40]} Nbd7 {[%emt 0:01:25]} 8. Qd2 {[%emt 0:03:28]} h6 {[%emt 0:02:08]} 9. O-O-O {[%emt 0:01:49]} b5 {[%emt 0:03:26]} 10. g4 {[%emt 0:01:04]} b4 {[%emt 0:01:31]} 11. Ne2 {[%emt 0:00:14]} a5 {[%emt 0:02:38]} 12. g5 {[%emt 0:02:51]} hxg5 {[%emt 0:00:56]} 13. Nxg5 {[%emt 0:03:42]} Ba6 {[%emt 0:01:28]} 14. Ng3 {[%emt 0:04:11]} c5 {[%emt 0:02:16]} 15. Bxa6 {[%emt 0:06:16]} Rxa6 16. f4 c4 {[%emt 0:11:11]} 17. Qe2 {[%emt 0:02:01]} e6 {[%emt 0:10:36]} 18. f5 {[%emt 0:03:03]} gxf5 {[%emt 0:00:22]} 19. exf5 {[%emt 0:00:14]} e5 {[%emt 0:00:28]} 20. dxe5 {[%emt 0:06:30]} Nxe5 {[%emt 0:02:38]} 21. Bd4 {[%emt 0:02:16]} Bh6 {[%emt 0:06:25]} 22. h4 {[%emt 0:00:23]} Nfd7 {[%emt 0:00:56]} 23. Kb1 f6 24. Qh5+ Ke7 25. N3e4 Raa8 26. Ne6 Qc6 27. Qe2 c3 28. b3 a4 1/2-1/2

[Event "7. Arber-Senioren-Cup 2019"]
[Site "Bodenmais"]
[Date "2019.08.01"]
[Round "6.27"]
[White "Berger, Siegfried"]
[Black "Wolff, Peter"]
[Result "1/2-1/2"]
[ECO "B10"]
[WhiteElo "1548"]
[BlackElo "1915"]
[Annotator "NA"]
[PlyCount "54"]
[EventDate "2019.07.27"]
[EventType "swiss"]
[EventCountry "GER"]
[SourceTitle "playchess.com"]
[Source "ChessBase"]
[SourceQuality "1"]
[TimeControl "60/7800+30:0"]

1. e4 {[%emt 0:00:00]} c6 {[%emt 0:00:00]} 2. Nf3 {[%emt 0:00:00]} d5 {[%emt 0:00:00]} 3. exd5 {[%emt 0:01:01]} cxd5 {[%emt 0:00:02]} 4. d4 {[%emt 0:01:22]} Nf6 {[%emt 0:00:26]} 5. Nc3 {[%emt 0:01:54]} g6 {[%emt 0:02:08]} 6. Bb5+ {[%emt 0:02:41]} Nc6 {[%emt 0:00:29]} 7. h3 {[%emt 0:00:34]} Bg7 {[%emt 0:00:25]} 8. O-O {[%emt 0:01:26]} O-O {[%emt 0:00:16]} 9. Re1 {[%emt 0:01:45]} Qc7 {[%emt 0:05:27]} 10. Bg5 {[%emt 0:04:01]} Be6 {[%emt 0:00:44]} 11. Qd2 {[%emt 0:03:26]} Rfd8 {[%emt 0:02:00]} 12. Bf4 {[%emt 0:02:06]} Qb6 {[%emt 0:01:11]} 13. Bxc6 {[%emt 0:04:49]} Qxc6 {[%emt 0:03:31]} 14. Ng5 {[%emt 0:04:25]} Nh5 {[%emt 0:17:48]} 15. Nxe6 {[%emt 0:02:20]} fxe6 {[%emt 0:00:12]} 16. Be5 {[%emt 0:02:33]} Rf8 {[%emt 0:02:19]} 17. Bxg7 {[%emt 0:07:44]} Nxg7 {[%emt 0:00:57]} 18. Ne2 {[%emt 0:04:57]} Rf6 {[%emt 0:04:53]} 19. c3 {[%emt 0:02:32]} Raf8 {[%emt 0:00:47]} 20. f3 {[%emt 0:01:35]} Nh5 {[%emt 0:15:53]} 21. Qg5 {[%emt 0:06:11]} R8f7 {[%emt 0:13:39]} 22. Qe5 {[%emt 0:03:17]} Rf5 {[%emt 0:02:07]} 23. Qe3 {[%emt 0:04:27]} Qd6 {[%emt 0:09:27]} 24. Rf1 {[%emt 0:01:07]} Ng7 {[%emt 0:14:22]} 25. Rf2 {[%emt 0:03:02]} Qb6 {[%emt 0:19:38]} 26. b3 {[%emt 0:03:41]} e5 {[%emt 0:01:27]} 27. Raf1 {[%emt 0:02:12]} exd4 {[%emt 0:14:04]} 1/2-1/2

[Event "7. Arber-Senioren-Cup 2019"]
[Site "Bodenmais"]
[Date "2019.08.02"]
[Round "7.1"]
[White "Koehler, Gerhard"]
[Black "Pirrot, Dieter"]
[Result "1/2-1/2"]
[ECO "A20"]
[WhiteElo "2197"]
[BlackElo "2315"]
[Annotator "ChessBase"]
[PlyCount "111"]
[EventDate "2019.07.27"]
[EventType "swiss"]
[EventCountry "GER"]
[SourceTitle "playchess.com"]
[Source "ChessBase"]
[SourceQuality "1"]
[TimeControl "60/7800+30:0"]

1. c4 {[%emt 0:00:00]} e5 {[%emt 0:00:00]} 2. g3 {[%emt 0:00:00]} Nf6 {[%emt 0:00:00]} 3. Bg2 {[%emt 0:00:00]} c6 {[%emt 0:00:00]} 4. Nf3 {[%emt 0:01:03]} e4 {[%emt 0:00:28]} 5. Nd4 {[%emt 0:00:04]} Qb6 {[%emt 0:00:59]} 6. e3 {[%emt 0:05:33]} d5 {[%emt 0:01:51]} 7. cxd5 {[%emt 0:01:44]} cxd5 {[%emt 0:00:27]} 8. Nc3 {[%emt 0:05:38]} Nc6 {[%emt 0:03:53]} 9. Nxc6 {[%emt 0:13:18]} bxc6 {[%emt 0:00:13]} 10. d3 {[%emt 0:01:25]} exd3 {[%emt 0:09:57]} 11. Qxd3 {[%emt 0:03:01]} Ba6 {[%emt 0:00:56]} 12. Qd1 {[%emt 0:04:14]} Bb4 {[%emt 0:03:42]} 13. Bd2 {[%emt 0:03:06]} O-O {[%emt 0:03:38]} 14. a3 {[%emt 0:10:20]} Bxc3 {[%emt 0:01:00]} 15. Bxc3 {[%emt 0:00:10]} Rfe8 {[%emt 0:26:23]} 16. Qd2 {[%emt 0:07:56]} Ne4 {[%emt 0:01:10]} 17. Bxe4 {[%emt 0:03:04]} dxe4 {[%emt 0:01:46]} 18. Qd4 {[%emt 0:00:32]} f6 {[%emt 0:00:08]} 19. O-O-O {[%emt 0:03:05]} Bd3 {[%emt 0:01:57]} 20. Qxb6 {[%emt 0:00:34]} axb6 {[%emt 0:00:07]} 21. f4 {[%emt 0:03:48]} c5 {[%emt 0:05:25]} 22. Kd2 {[%emt 0:03:15]} Red8 {[%emt 0:11:49]} 23. Ke1 {[%emt 0:05:58]} Bc2 {[%emt 0:02:07]} 24. Rxd8+ {[%emt 0:02:00]} Rxd8 {[%emt 0:00:07]} 25. Ke2 {[%emt 0:00:09]} h5 {[%emt 0:02:22]} 26. h3 {[%emt 0:06:28]} Kf7 {[%emt 0:00:42]} 27. Kf2 {[%emt 0:03:36]} Bd1 {[%emt 0:01:47]} 28. Re1 {[%emt 0:02:48]} Rd3 {[%emt 0:00:32]} 29. Rg1 {[%emt 0:01:15]} Bf3 {[%emt 0:06:51]} 30. g4 {[%emt 0:14:35]} hxg4 {[%emt 0:03:13]} 31. hxg4 {[%emt 0:00:10]} g5 {[%emt 0:00:46]} 32. fxg5 {[%emt 0:00:54]} fxg5 {[%emt 0:01:51]} 33. Rg3 {[%emt 0:01:32]} Kg6 {[%emt 0:00:40]} 34. Rh3 {[%emt 0:03:43]} Bxg4 {[%emt 0:01:40]} 35. Rh8 {[%emt 0:00:12]} Bd7 {[%emt 0:05:48]} 36. Rb8 {[%emt 0:02:47]} b5 {[%emt 0:00:30]} 37. Rb7 {[%emt 0:04:53]} Kh5 {[%emt 0:03:47]} 38. Rc7 {[%emt 0:01:37]} Rd5 {[%emt 0:01:56]} 39. Kg3 {[%emt 0:00:19]} Kg6 {[%emt 0:02:47]} 40. Kg2 {[%emt 0:02:53]} Kf5 {[%emt 0:00:39]} 41. Kg3 {[%emt 0:00:19]} Ke6 {[%emt 0:00:19]} 42. Rb7 {[%emt 0:03:56]} Rd1 {[%emt 0:01:37]} 43. Rb8 {[%emt 0:01:07]} Rf1 {[%emt 0:00:52]} 44. Rg8 {[%emt 0:04:24]} Rf3+ {[%emt 0:02:15]} 45. Kg2 {[%emt 0:00:25]} Kf5 {[%emt 0:00:56]} 46. Rf8+ {[%emt 0:01:23]} Kg4 {[%emt 0:00:12]} 47. Rxf3 {[%emt 0:00:10]} exf3+ {[%emt 0:00:06]} 48. Kf2 {[%emt 0:00:09]} Bc6 {[%emt 0:01:02]} 49. Be5 {[%emt 0:00:23]} Kf5 {[%emt 0:01:05]} 50. Bd6 {[%emt 0:00:16]} c4 {[%emt 0:00:06]} 51. Bc5 {[%emt 0:00:54]} Ke4 {[%emt 0:00:32]} 52. Be7 {[%emt 0:00:31]} g4 {[%emt 0:00:07]} 53. Bd6 {[%emt 0:00:22]} Kd3 {[%emt 0:00:21]} 54. Be5 {[%emt 0:00:47]} Be4 {[%emt 0:00:37]} 55. Bg3 {[%emt 0:01:30]} Bc6 {[%emt 0:05:42]} 56. Bd6 {[%emt 0:00:44]} 1/2-1/2

[Event "7. Arber-Senioren-Cup 2019"]
[Site "Bodenmais"]
[Date "2019.08.02"]
[Round "7.2"]
[White "Herbold, Manfred"]
[Black "Blechzin, Igor"]
[Result "1/2-1/2"]
[ECO "B20"]
[WhiteElo "2081"]
[BlackElo "2221"]
[Annotator "ChessBase"]
[PlyCount "33"]
[EventDate "2019.07.27"]
[EventType "swiss"]
[EventCountry "GER"]
[SourceTitle "playchess.com"]
[Source "ChessBase"]
[SourceQuality "1"]
[TimeControl "60/7800+30:0"]

1. e4 {[%emt 0:00:00]} c5 {[%emt 0:00:00]} 2. b4 {[%emt 0:01:07]} cxb4 {[%emt 0:04:38]} 3. a3 {[%emt 0:00:16]} d5 {[%emt 0:06:54]} 4. exd5 {[%emt 0:00:13]} Qxd5 {[%emt 0:01:07]} 5. Nf3 {[%emt 0:00:21]} e6 {[%emt 0:13:20]} 6. axb4 {[%emt 0:05:43]} Bxb4 {[%emt 0:02:14]} 7. c3 {[%emt 0:00:42]} Be7 {[%emt 0:00:59]} 8. d4 {[%emt 0:01:00]} Nf6 {[%emt 0:01:05]} 9. Na3 {[%emt 0:05:24]} O-O {[%emt 0:17:06]} 10. Bd3 {[%emt 0:04:46]} Bd7 {[%emt 0:12:41]} 11. O-O {[%emt 0:04:05]} Bc6 {[%emt 0:02:01]} 12. Nc4 {[%emt 0:06:36]} Nbd7 {[%emt 0:00:41]} 13. Re1 {[%emt 0:01:26]} b6 {[%emt 0:09:07]} 14. Nce5 {[%emt 0:01:17]} Nxe5 {[%emt 0:03:52]} 15. Rxe5 {[%emt 0:07:21]} Qd7 {[%emt 0:00:40]} 16. Rg5 {[%emt 0:05:46]} Qb7 {[%emt 0:08:32]} 17. Ne5 {[%emt 0:05:08]} 1/2-1/2